[Event "GER-ch-Seniors-50 2019"]
[Site "Radebeul"]
[Date "2019.04.28"]
[Round "3.3"]
[White "Metz, Hartmut"]
[Black "Koehler, Gerhard"]
[Result "1/2-1/2"]
[ECO "B37"]
[WhiteElo "2251"]
[BlackElo "2153"]
[Annotator "NA"]
[PlyCount "191"]
[EventDate "2019.04.26"]
[EventType "swiss"]
[EventCountry "GER"]
[SourceTitle "playchess.com"]
[Source "ChessBase"]
[SourceQuality "1"]
[TimeControl "40/5400+30:1800+30"]

1. e4 {[%emt 0:00:00]} c5 {[%emt 0:00:00]} 2. Nf3 {[%emt 0:00:00]} g6 {[%emt 0:00:00]} 3. d4 {[%emt 0:01:32]} cxd4 {[%emt 0:00:04]} 4. Nxd4 {[%emt 0:00:01]} Nc6 {[%emt 0:00:28]} 5. c4 {[%emt 0:00:10]} Bg7 {[%emt 0:00:37]} 6. Nc2 {[%emt 0:00:49]} d6 {[%emt 0:02:23]} 7. Be2 {[%emt 0:00:10]} Qa5+ {[%emt 0:08:06] B37: Sicilian: Maroczy Bind with 5...Bg7, sidelines} (7... Nf6 8. Nc3 O-O 9. O-O Be6 10. Bd2 Nd7 11. Rc1 Nc5 12. b4 Bxc3 13. Bxc3 Nxe4 14. Ba1 a5 15. b5 Ne5 16. Qd4 Nf6 17. Ne3 Ned7 18. Bf3 {1-0 (33) Aronian,L (2785)-Flores,D (2579) Doha 2016}) 8. Bd2 {[%emt 0:04:59]} Qb6 {[%emt 0:03:15]} 9. Nc3 {[%emt 0:01:09]} Nf6 {[%emt 0:02:47]} 10. O-O {[%emt 0:21:27]} O-O {[%emt 0:00:49]} 11. Rc1 {[%emt 0:03:54]} Be6 $146 {[%emt 0:03:59]} ({Predecessor:} 11... a5 12. Ne3 Nd7 13. Na4 Qd8 14. f3 Nc5 15. Nc3 {½-½ (41) Pick,S (2115)-Ellers,H (2305) Pardubice 1996}) 12. b3 {[%emt 0:01:22]} Rfc8 {[%emt 0:05:36]} 13. Nd5 {[%emt 0:01:08]} Qd8 {[%emt 0:00:39]} 14. f3 {[%emt 0:01:25]} Bd7 {[%emt 0:05:40]} 15. Kh1 {[%emt 0:04:01]} Nxd5 {[%emt 0:07:52]} 16. exd5 {[%emt 0:03:05]} Nd4 {[%emt 0:03:10]} 17. Nxd4 {[%emt 0:01:10]} Bxd4 {[%emt 0:00:16]} 18. Bg5 {[%emt 0:00:12]} Bg7 {[%emt 0:00:40]} 19. Bd3 {[%emt 0:00:29]} Qf8 {[%emt 0:01:08]} 20. Rc2 {[%emt 0:03:18]} Bh6 {[%emt 0:03:58]} 21. Bh4 {[%emt 0:06:26]} Bf4 {[%emt 0:06:24]} 22. Qe1 {[%emt 0:01:27]} Re8 {[%emt 0:00:12]} 23. Re2 {[%emt 0:00:57]} Qh6 {[%emt 0:06:45]} 24. Bg3 {[%emt 0:10:15]} Bg5 {[%emt 0:04:53]} 25. Bf2 {[%emt 0:09:27]} Bf6 {[%emt 0:03:35]} 26. Be3 {[%emt 0:01:36]} Qg7 {[%emt 0:03:55]} 27. Qc1 {[%emt 0:00:31]} b6 {[%emt 0:01:07]} 28. Bh6 {[%emt 0:02:40]} Qh8 {[%emt 0:00:03]} 29. Qe1 {[%emt 0:06:58]} Bc3 {[%emt 0:05:42]} 30. Bd2 {[%emt 0:03:55]} Bxd2 {[%emt 0:00:58]} 31. Qxd2 {[%emt 0:00:38]} Qf6 {[%emt 0:02:08]} 32. Rfe1 {[%emt 0:00:08]} Kg7 {[%emt 0:02:58]} 33. Re4 {[%emt 0:01:00]} e5 {[%emt 0:00:53]} 34. dxe6 {[%emt 0:00:23]} Rxe6 {[%emt 0:00:02]} 35. Rxe6 {[%emt 0:01:03]} Bxe6 {[%emt 0:00:16]} 36. Be4 {[%emt 0:00:31]} Rd8 {[%emt 0:00:30]} 37. Rd1 {[%emt 0:00:29]} Qe5 {[%emt 0:00:41]} 38. Kg1 {[%emt 0:03:06]} f5 {[%emt 0:02:32]} 39. Bb7 {[%emt 0:05:24]} Qc5+ {[%emt 0:06:19]} 40. Kh1 {[%emt 0:00:47]} Rd7 {[%emt 0:05:36]} 41. Ba8 {[%emt 0:05:11]} Rd8 {[%emt 0:08:50]} 42. Qb2+ {[%emt 0:14:50]} Kf7 {[%emt 0:01:24]} 43. Bb7 {[%emt 0:01:04]} b5 {[%emt 0:07:14]} 44. Bd5 {[%emt 0:04:59]} Bxd5 {[%emt 0:00:36]} 45. Rxd5 {[%emt 0:01:05]} Qe3 {[%emt 0:00:40]} 46. h3 {[%emt 0:01:15]} Qe1+ {[%emt 0:01:44]} 47. Kh2 {[%emt 0:00:22]} f4 {[%emt 0:05:02]} 48. Qd2 {[%emt 0:04:18]} Qxd2 {[%emt 0:00:31]} 49. Rxd2 {[%emt 0:00:01]} bxc4 {[%emt 0:00:12]} 50. bxc4 {[%emt 0:00:04]} Ke6 {[%emt 0:00:49]} 51. h4 {[%emt 0:00:23]} d5 {[%emt 0:02:09]} 52. Re2+ {[%emt 0:00:24]} Kf6 {[%emt 0:00:45]} 53. cxd5 {[%emt 0:00:08]} Rxd5 {[%emt 0:00:06]} 54. Re4 {[%emt 0:00:09]} Kf5 {[%emt 0:00:22]} 55. Ra4 {[%emt 0:02:10]} a5 {[%emt 0:00:29]} 56. Rc4 {[%emt 0:00:31]} h6 {[%emt 0:00:49]} 57. Rc6 {[%emt 0:00:48]} h5 {[%emt 0:00:53]} 58. Ra6 {[%emt 0:00:31]} Rc5 {[%emt 0:02:22]} 59. a3 {[%emt 0:00:47]} Rb5 {[%emt 0:00:22]} 60. a4 {[%emt 0:01:13]} Rd5 {[%emt 0:00:34]} 61. Kg1 {[%emt 0:00:17]} g5 {[%emt 0:02:28]} 62. Rh6 {[%emt 0:00:36]} gxh4 {[%emt 0:01:31]} 63. Rxh5+ {[%emt 0:00:05] Double Attack} Ke6 {[%emt 0:00:11]} 64. Rh6+ {[%emt 0:01:08]} Kd7 {[%emt 0:00:27]} 65. Ra6 {[%emt 0:00:38]} Kc7 {[%emt 0:00:15]} 66. Kh2 {[%emt 0:00:24]} Kb7 {[%emt 0:00:25]} 67. Re6 {[%emt 0:00:57]} Rd4 {[%emt 0:00:34]} 68. Re4 {[%emt 0:00:41]} Rb4 {[%emt 0:00:07]} 69. Kh3 {[%emt 0:00:07]} Kc6 {[%emt 0:00:26]} 70. Kg4 {[%emt 0:00:14]} Rb2 {[%emt 0:00:18]} 71. Rxf4 {[%emt 0:00:32]} Rxg2+ {[%emt 0:00:13]} 72. Kxh4 {[%emt 0:00:01]} Kc5 {[%emt 0:01:06]} 73. Re4 {[%emt 0:00:31]} Rg1 {[%emt 0:01:16]} 74. f4 {[%emt 0:00:54]} Rg2 {[%emt 0:00:19]} 75. Kh5 {[%emt 0:00:12]} Rg1 {[%emt 0:00:17]} 76. Kh6 $2 {[%emt 0:00:16]} (76. f5 $18 Kd5 77. Re2) 76... Rg2 $2 {[%emt 0:00:21]} (76... Rg4 $11) 77. Kh5 {[%emt 0:00:37]} Rg1 {[%emt 0:00:10]} 78. Kh6 {[%emt 0:00:05]} Rg2 {[%emt 0:00:05]} 79. f5 {[%emt 0:00:54]} Kd5 {[%emt 0:00:18]} 80. Re8 {[%emt 0:01:02]} Rg4 {[%emt 0:02:30]} 81. f6 {[%emt 0:00:17]} Rxa4 {[%emt 0:00:03]} 82. f7 {[%emt 0:01:34]} Rf4 {[%emt 0:00:11]} 83. f8=Q {[%emt 0:00:27]} Rxf8 {[%emt 0:00:02]} 84. Rxf8 {[%emt 0:00:01]} Kc4 {[%emt 0:00:12]} 85. Kg5 {[%emt 0:00:07]} a4 {[%emt 0:00:06]} 86. Kf4 {[%emt 0:00:06]} a3 {[%emt 0:00:17]} 87. Ke3 {[%emt 0:00:11]} Kc3 {[%emt 0:00:28]} 88. Rc8+ {[%emt 0:01:40]} Kb2 {[%emt 0:00:43]} 89. Rb8+ {[%emt 0:00:30]} Kc2 {[%emt 0:00:40]} 90. Ra8 {[%emt 0:00:09]} Kb2 {[%emt 0:00:14]} 91. Kd3 {[%emt 0:00:49]} a2 {[%emt 0:00:17]} 92. Rb8+ {[%emt 0:00:21]} Kc1 {[%emt 0:01:55]} 93. Rc8+ {[%emt 0:00:49]} Kb1 $11 {[%emt 0:00:21]} 94. Kd2 {[%emt 0:00:52]} a1=Q {[%emt 0:00:19]} 95. Rb8+ {[%emt 0:00:10]} Qb2+ {[%emt 0:00:30]} 96. Rxb2+ {[%emt 0:00:30]} 1/2-1/2

[Event "GER-ch-Seniors-50 2019"]
[Site "Radebeul"]
[Date "2019.04.28"]
[Round "3.4"]
[White "Reitmaier, Adolf"]
[Black "Held, Peter"]
[Result "0-1"]
[ECO "D10"]
[WhiteElo "1476"]
[BlackElo "2179"]
[Annotator "NA"]
[PlyCount "60"]
[EventDate "2019.04.26"]
[EventType "swiss"]
[EventCountry "GER"]
[SourceTitle "playchess.com"]
[Source "ChessBase"]
[SourceQuality "1"]
[TimeControl "40/5400+30:1800+30"]

1. c4 {[%emt 0:00:00]} c6 {[%emt 0:00:00]} 2. Nc3 {[%emt 0:00:00]} d5 {[%emt 0:00:00]} 3. d4 {[%emt 0:00:16]} dxc4 {[%emt 0:00:14]} 4. e4 {[%emt 0:00:16]} b5 {[%emt 0:00:25]} 5. Nf3 {[%emt 0:01:02]} Bg4 {[%emt 0:05:42]} 6. Be2 {[%emt 0:00:34]} Nf6 {[%emt 0:03:08]} 7. O-O {[%emt 0:01:15]} e6 {[%emt 0:05:53]} 8. Bg5 {[%emt 0:00:51]} h6 {[%emt 0:00:52]} 9. Bxf6 {[%emt 0:02:14]} Qxf6 {[%emt 0:01:21]} 10. d5 {[%emt 0:02:31]} b4 {[%emt 0:12:12]} 11. Na4 {[%emt 0:05:49]} exd5 {[%emt 0:10:57]} 12. exd5 {[%emt 0:01:15]} Bd6 {[%emt 0:01:05]} 13. Bxc4 {[%emt 0:04:46]} O-O {[%emt 0:02:21]} 14. dxc6 {[%emt 0:00:48]} Bxf3 {[%emt 0:14:18]} 15. Qxf3 {[%emt 0:03:20]} Qh4 {[%emt 0:00:58]} 16. g3 {[%emt 0:05:09]} Qxc4 {[%emt 0:00:21]} 17. Rfc1 {[%emt 0:01:52]} Qb5 {[%emt 0:03:52]} 18. b3 {[%emt 0:00:22]} Rc8 {[%emt 0:05:59]} 19. Qd1 {[%emt 0:03:45]} Be7 {[%emt 0:05:47]} 20. c7 {[%emt 0:03:54]} Na6 {[%emt 0:01:57]} 21. Qf3 {[%emt 0:00:55]} Bf6 {[%emt 0:14:06]} 22. Qxa8 {[%emt 0:10:58]} Rxa8 {[%emt 0:00:04]} 23. c8=Q+ Rxc8 {[%emt 0:00:16]} 24. Rxc8+ {[%emt 0:00:14]} Kh7 {[%emt 0:00:11]} 25. Rac1 {[%emt 0:00:13]} Bd4 {[%emt 0:02:55]} 26. R1c2 {[%emt 0:01:41]} Nb8 {[%emt 0:02:45]} 27. R2c4 {[%emt 0:03:58]} Qf5 {[%emt 0:00:40]} 28. Rc2 {[%emt 0:01:07]} Bc3 {[%emt 0:00:55]} 29. R2xc3 {[%emt 0:01:24]} bxc3 {[%emt 0:00:07]} 30. Rxc3 {[%emt 0:00:14]} Nd7 {[%emt 0:00:46]} 0-1

[Event "GER-ch-Seniors-50 2019"]
[Site "Radebeul"]
[Date "2019.04.28"]
[Round "3.5"]
[White "Terhorst, Jochen"]
[Black "Krien, Hartmut"]
[Result "1/2-1/2"]
[ECO "B03"]
[WhiteElo "2165"]
[BlackElo "1853"]
[Annotator "NA"]
[PlyCount "30"]
[EventDate "2019.04.26"]
[EventType "swiss"]
[EventCountry "GER"]
[SourceTitle "playchess.com"]
[Source "ChessBase"]
[SourceQuality "1"]
[TimeControl "40/5400+30:1800+30"]

1. e4 {[%emt 0:00:00]} Nf6 {[%emt 0:00:00]} 2. e5 {[%emt 0:00:00]} Nd5 {[%emt 0:00:00]} 3. d4 {[%emt 0:00:00]} d6 {[%emt 0:00:00]} 4. Bc4 {[%emt 0:00:00]} Nb6 {[%emt 0:00:14]} 5. Bb3 {[%emt 0:00:02]} a5 {[%emt 0:00:35]} 6. a4 {[%emt 0:00:23]} g6 {[%emt 0:00:29]} 7. e6 {[%emt 0:08:03]} Bxe6 {[%emt 0:02:10]} 8. Bxe6 {[%emt 0:04:32]} fxe6 {[%emt 0:00:11]} 9. Nh3 {[%emt 0:03:07]} Qd7 {[%emt 0:13:59]} 10. O-O {[%emt 0:06:49]} Nc6 {[%emt 0:03:42]} 11. Re1 {[%emt 0:04:41]} Bg7 {[%emt 0:01:02]} 12. Ng5 {[%emt 0:06:48]} Nxd4 {[%emt 0:04:45]} 13. Be3 {[%emt 0:02:11]} Nf5 {[%emt 0:03:33]} 14. Bxb6 {[%emt 0:00:33]} cxb6 {[%emt 0:00:36]} 15. Nxe6 {[%emt 0:02:48]} Bxb2 {[%emt 0:01:09]} 1/2-1/2

[Event "GER-ch-Seniors-50 2019"]
[Site "Radebeul"]
[Date "2019.04.28"]
[Round "3.6"]
[White "Schmidt, Gerhard"]
[Black "Schatz, Christian"]
[Result "1-0"]
[ECO "E69"]
[WhiteElo "2172"]
[BlackElo "2150"]
[Annotator "NA"]
[PlyCount "100"]
[EventDate "2019.04.26"]
[EventType "swiss"]
[EventCountry "GER"]
[SourceTitle "playchess.com"]
[Source "ChessBase"]
[SourceQuality "1"]
[TimeControl "40/5400+30:1800+30"]

1. Nf3 {[%emt 0:00:00]} Nf6 {[%emt 0:00:00]} 2. c4 {[%emt 0:00:00]} g6 {[%emt 0:00:32]} 3. g3 {[%emt 0:00:30]} Bg7 {[%emt 0:00:25]} 4. Bg2 {[%emt 0:00:17]} O-O {[%emt 0:00:13]} 5. d4 {[%emt 0:00:33]} d6 {[%emt 0:00:51]} 6. O-O {[%emt 0:00:22]} Nbd7 {[%emt 0:02:05]} 7. Nc3 {[%emt 0:00:27]} e5 {[%emt 0:00:16]} 8. e4 {[%emt 0:00:51]} c6 {[%emt 0:01:52]} 9. h3 {[%emt 0:00:40]} exd4 {[%emt 0:02:22]} 10. Nxd4 {[%emt 0:00:26]} Re8 {[%emt 0:00:39]} 11. Be3 {[%emt 0:01:24]} Nb6 {[%emt 0:05:59]} 12. b3 {[%emt 0:10:19]} d5 {[%emt 0:02:27]} 13. c5 {[%emt 0:02:34]} Nbd7 {[%emt 0:00:53]} 14. exd5 {[%emt 0:00:35]} Nxd5 {[%emt 0:01:43]} 15. Nxd5 {[%emt 0:01:10]} cxd5 {[%emt 0:00:13]} 16. Rc1 {[%emt 0:04:29]} Ne5 {[%emt 0:04:14]} 17. Nb5 {[%emt 0:07:12]} Be6 {[%emt 0:02:10]} 18. Nd6 {[%emt 0:01:53]} Rf8 {[%emt 0:04:54]} 19. Nxb7 {[%emt 0:10:42]} Qd7 {[%emt 0:04:19]} 20. Nd6 {[%emt 0:04:05]} Bxh3 {[%emt 0:02:15]} 21. Qxd5 {[%emt 0:01:46]} Bxg2 {[%emt 0:01:51]} 22. Kxg2 {[%emt 0:01:06]} Rad8 {[%emt 0:03:54]} 23. Bd4 {[%emt 0:09:56]} Rfe8 {[%emt 0:05:00]} 24. Rfd1 {[%emt 0:03:50]} Re6 {[%emt 0:09:20]} 25. Ba1 {[%emt 0:00:51]} h5 {[%emt 0:02:18]} 26. Kg1 {[%emt 0:13:04]} h4 {[%emt 0:05:09]} 27. gxh4 {[%emt 0:06:28]} g5 {[%emt 0:18:26]} 28. hxg5 {[%emt 0:05:06]} Rg6 {[%emt 0:02:06]} 29. Bxe5 {[%emt 0:08:21]} Rxg5+ {[%emt 0:00:14]} 30. Bg3 {[%emt 0:00:29]} Rxd5 {[%emt 0:00:30]} 31. Rxd5 {[%emt 0:00:07]} Qc6 {[%emt 0:07:57]} 32. Nf5 {[%emt 0:01:22]} Qe8 {[%emt 0:03:21]} 33. Rxd8 {[%emt 0:01:07]} Qxd8 {[%emt 0:00:00]} 34. c6 {[%emt 0:00:53]} Qd2 {[%emt 0:00:16]} 35. Rc4 {[%emt 0:01:15]} Qd1+ {[%emt 0:00:09]} 36. Kh2 {[%emt 0:01:43]} Qh5+ {[%emt 0:00:21]} 37. Nh4 {[%emt 0:00:16]} Be5 {[%emt 0:00:30]} 38. Bxe5 {[%emt 0:00:44]} Qxe5+ {[%emt 0:00:09]} 39. f4 {[%emt 0:00:27]} Qe2+ {[%emt 0:00:54]} 40. Ng2 {[%emt 0:00:28]} Qh5+ {[%emt 0:00:16]} 41. Kg3 {[%emt 0:30:45]} Qg6+ {[%emt 0:30:20]} 42. Kf2 {[%emt 0:00:24]} Qf5 {[%emt 0:03:57]} 43. c7 {[%emt 0:00:49]} Qc8 {[%emt 0:00:03]} 44. Ne3 {[%emt 0:01:05]} Kg7 {[%emt 0:03:17]} 45. Nf5+ {[%emt 0:01:01]} Kf6 {[%emt 0:00:32]} 46. Nd6 {[%emt 0:00:17]} Qh3 {[%emt 0:00:36]} 47. Ne4+ {[%emt 0:00:00]} Kg7 {[%emt 0:00:00]} 48. c8=Q {[%emt 0:00:00]} Qh2+ {[%emt 0:00:00]} 49. Ke3 {[%emt 0:00:00]} Qg1+ {[%emt 0:00:00]} 50. Ke2 {[%emt 0:00:00]} Qg2+ {[%emt 0:00:00] Qc5} 1-0

[Event "GER-ch-Seniors-50 2019"]
[Site "Radebeul"]
[Date "2019.04.30"]
[Round "5.1"]
[White "Nekrasov, Mihail"]
[Black "Koehler, Gerhard"]
[Result "1-0"]
[ECO "C05"]
[WhiteElo "2277"]
[BlackElo "2153"]
[Annotator "NA"]
[PlyCount "59"]
[EventDate "2019.04.26"]
[EventType "swiss"]
[EventCountry "GER"]
[SourceTitle "playchess.com"]
[Source "ChessBase"]
[SourceQuality "1"]
[TimeControl "40/5400+30:1800+30"]

1. e4 {[%emt 0:00:00]} e6 {[%emt 0:00:00]} 2. d4 {[%emt 0:00:11]} d5 {[%emt 0:00:00]} 3. Nd2 {[%emt 0:00:48]} Nf6 {[%emt 0:00:19]} 4. e5 {[%emt 0:01:04]} Nfd7 {[%emt 0:00:22]} 5. Bd3 {[%emt 0:00:18]} c5 {[%emt 0:01:09]} 6. c3 {[%emt 0:00:17]} Nc6 {[%emt 0:03:17]} 7. Ne2 {[%emt 0:00:45]} Qb6 {[%emt 0:03:32]} 8. Nf3 {[%emt 0:00:25]} cxd4 {[%emt 0:01:28]} 9. cxd4 {[%emt 0:00:14]} Be7 {[%emt 0:08:10]} 10. O-O {[%emt 0:09:09]} Qd8 {[%emt 0:06:49]} 11. a3 {[%emt 0:02:20]} Nb6 {[%emt 0:01:12]} 12. b3 {[%emt 0:07:43]} Bd7 {[%emt 0:00:54]} 13. Bd2 {[%emt 0:00:27]} a5 {[%emt 0:06:06]} 14. Nc3 {[%emt 0:01:45]} f5 {[%emt 0:07:05]} 15. exf6 {[%emt 0:03:49]} gxf6 $18 {[%emt 0:18:05]} (15... Bxf6 $16 {was necessary.} 16. Nb5 O-O) 16. Nh4 {[%emt 0:02:34]} Bc8 {[%emt 0:14:35]} 17. Nb5 {[%emt 0:01:47]} Kd7 {[%emt 0:00:38]} 18. Bf4 {[%emt 0:20:21]} Qg8 {[%emt 0:00:14]} 19. Nc7 {[%emt 0:00:22]} Nxd4 {[%emt 0:01:29]} 20. Nxa8 {[%emt 0:00:38]} Nxa8 {[%emt 0:00:20]} 21. b4 {[%emt 0:04:16]} Nc6 {[%emt 0:09:28]} 22. Bg3 {[%emt 0:01:18]} Qg7 {[%emt 0:05:08]} 23. Re1 {[%emt 0:03:18]} Kd8 {[%emt 0:07:02]} 24. Bb5 {[%emt 0:07:19]} Ne5 {[%emt 0:01:09]} 25. Qd4 {[%emt 0:09:49]} Bd6 {[%emt 0:00:47]} 26. f4 {[%emt 0:02:18]} Nf7 {[%emt 0:00:29]} 27. Rac1 {[%emt 0:01:04]} axb4 {[%emt 0:01:09]} 28. axb4 {[%emt 0:00:12]} Bc7 {[%emt 0:00:10]} 29. Qd3 {[%emt 0:04:48]} f5 {[%emt 0:01:08]} 30. Nxf5 {[%emt 0:02:37]} 1-0

[Event "GER-ch-Seniors-50 2019"]
[Site "Radebeul"]
[Date "2019.04.30"]
[Round "5.2"]
[White "Metz, Hartmut"]
[Black "Held, Peter"]
[Result "1-0"]
[ECO "C45"]
[WhiteElo "2251"]
[BlackElo "2179"]
[Annotator "NA"]
[PlyCount "75"]
[EventDate "2019.04.26"]
[EventType "swiss"]
[EventCountry "GER"]
[SourceTitle "playchess.com"]
[Source "ChessBase"]
[SourceQuality "1"]
[TimeControl "40/5400+30:1800+30"]

1. e4 {[%emt 0:00:00]} e5 {[%emt 0:00:00]} 2. Nf3 {[%emt 0:00:00]} Nc6 {[%emt 0:00:00]} 3. d4 {[%emt 0:00:00]} exd4 {[%emt 0:00:10]} 4. Nxd4 {[%emt 0:00:00]} Nf6 {[%emt 0:00:12]} 5. Nxc6 {[%emt 0:01:16]} bxc6 {[%emt 0:00:04]} 6. e5 {[%emt 0:02:11]} Qe7 {[%emt 0:01:44]} 7. Qe2 $1 {[%emt 0:00:07]} Nd5 {[%emt 0:00:10]} 8. c4 {[%emt 0:01:45]} Ba6 {[%emt 0:00:10]} 9. g3 {[%emt 0:04:08]} g6 {[%emt 0:00:29]} 10. Bg2 {[%emt 0:01:33] C45: Scotch Game} (10. b3 Bg7 11. Bb2 O-O 12. Bg2 Rfe8 13. O-O Bxe5 14. Qxe5 Qxe5 15. Bxe5 Rxe5 16. cxd5 Bxf1 17. Kxf1 cxd5 18. Na3 c6 19. Rd1 Kf8 20. Bf3 a5 {½-½ (48) Salgado Lopez,I (2644)-Eljanov,P (2711) Riadh 2017}) 10... Bg7 {[%emt 0:01:59]} 11. O-O {[%emt 0:00:21]} O-O-O {[%emt 0:10:32]} ({Stronger than} 11... Bxe5 12. Re1 $16) (11... O-O $1 $15) 12. Re1 {[%emt 0:06:22]} Qb4 $146 {[%emt 0:16:39]} ({Predecessor:} 12... Kb8 13. Qc2 Nb6 14. Na3 c5 15. b4 cxb4 16. c5 bxa3 17. Bxa3 c6 18. Qb2 d5 19. cxb6 Qd7 20. bxa7+ Ka8 21. Bc5 h5 22. Rab1 {1-0 (22) Meisel,D (1830)-Jimenez,J (1997) Chessfriend.com 2003}) 13. Nd2 {[%emt 0:04:56]} Rhe8 {[%emt 0:05:43]} 14. a3 {[%emt 0:01:25]} Qc5 {[%emt 0:06:00]} 15. Qd1 {[%emt 0:13:06]} Nb6 {[%emt 0:09:12]} 16. Ne4 {[%emt 0:11:33]} Qxe5 {[%emt 0:18:41]} 17. c5 {[%emt 0:00:43]} Nd5 {[%emt 0:01:46]} 18. Nd6+ {[%emt 0:00:45]} cxd6 {[%emt 0:00:13]} 19. Rxe5 {[%emt 0:00:04]} Rxe5 {[%emt 0:00:59]} 20. cxd6 {[%emt 0:02:22]} Rde8 {[%emt 0:10:21]} 21. Bd2 {[%emt 0:00:18]} Bf8 {[%emt 0:00:42]} 22. f4 {[%emt 0:09:27]} R5e6 {[%emt 0:06:03]} 23. Bxd5 {[%emt 0:05:44]} cxd5 {[%emt 0:00:05]} 24. Qc2+ {[%emt 0:00:27]} Kb8 {[%emt 0:00:56]} 25. Qc7+ {[%emt 0:00:36]} Ka8 {[%emt 0:00:03]} 26. Bb4 {[%emt 0:00:20]} Bb7 {[%emt 0:02:35]} 27. Bc5 {[%emt 0:11:05]} Rc8 {[%emt 0:02:52]} 28. Qa5 {[%emt 0:00:41]} Rxc5 {[%emt 0:00:06]} 29. Qxc5 {[%emt 0:00:03]} Bxd6 {[%emt 0:00:10]} 30. Qa5 {[%emt 0:04:43]} Bc6 {[%emt 0:00:45]} 31. Re1 {[%emt 0:04:48]} Bc7 {[%emt 0:03:54]} 32. Qb4 {[%emt 0:02:22]} Bb6+ {[%emt 0:01:19]} 33. Kf1 {[%emt 0:00:17]} Re4 {[%emt 0:00:10]} 34. Rxe4 {[%emt 0:03:50]} dxe4 {[%emt 0:00:03]} 35. a4 {[%emt 0:00:58]} h5 {[%emt 0:01:37]} 36. a5 {[%emt 0:02:11]} Bc7 {[%emt 0:00:02]} 37. a6 {[%emt 0:00:49]} d6 $18 {[%emt 0:01:08]} 38. Qc4 {[%emt 0:00:35]} 1-0